bitfinex-derivatives/quotes_ETHF0:USTF0_20251008
["timestamp","ask_amount","ask_price","bid_price","bid_amount"]
[1759933270305,0.39927,4506.9,4506.7,3.2078]
[1759933270502,0.69132837,4506.8,4506.5,0.3735]
[1759933270701,0.46532837,4506.7,4506.6,0.9458]
[1759933271102,3.28991515,4506.7,4506.6,0.9458]
[1759933271803,3.28991515,4506.7,4506.2,3.2078]
[1759933272007,0.46532837,4506.6,4506.2,3.2078]
[1759933272306,0.46532837,4506.6,4504.6,2.35070382]
[1759933272307,0.39932,4506.3,4505.6,3.20961497]
[1759933272510,0.69132837,4506.2,4505.6,3.20961497]
[1759933272810,0.46532837,4506.1,4505.7,0.9458]
[1759933273002,0.46532837,4506.1,4505.6,3.20961497]
[1759933273206,2.87682446,4506.0,4505.7,0.9458]
[1759933273507,0.46532837,4505.9,4505.7,0.9458]
[1759933273708,0.226,4505.8,4505.7,0.9458]
[1759933273907,3.56815283,4505.8,4505.7,0.9458]
[1759933274103,3.56815283,4505.8,4505.6,3.20961497]
[1759933274104,3.96752283,4505.8,4505.6,3.20961497]
[1759933274303,0.4714596,4505.7,4505.6,0.00181497]
[1759933274703,3.39879824,4505.7,4505.6,0.00181497]
[1759933274911,3.39879824,4505.7,4505.6,0.94761497]
[1759933275111,3.62479824,4505.7,4505.6,0.94761497]
[1759933275804,3.39879824,4505.7,4505.6,0.94761497]
[1759933275998,3.62479824,4505.7,4505.6,0.94761497]
[1759933276910,3.62479824,4505.7,4505.6,0.00181497]
[1759933277510,3.62479824,4505.7,4505.6,0.94761497]
[1759933277906,3.15333864,4505.7,4505.6,0.94761497]
[1759933278502,2.92733864,4505.7,4505.6,0.94761497]
[1759933278705,3.15333864,4505.7,4505.6,0.94761497]
[1759933278905,0.226,4505.7,4505.6,0.94761497]
[1759933279105,3.09286541,4505.7,4505.6,0.94761497]
[1759933279510,3.09286541,4505.7,4505.6,1.497e-05]
[1759933279707,0.99845,4505.6,4504.6,3.2078]
[1759933280007,4.44226172,4505.1,4504.2,0.9458]
[1759933280210,0.39945,4504.8,4504.2,0.9458]
[1759933280406,0.226,4504.7,4504.1,3.2078]
[1759933280608,3.15815747,4504.7,4504.1,4.1536]
[1759933280809,3.15815747,4504.7,4504.1,4.15582106]
[1759933282018,0.39947,4504.6,4504.1,4.15582106]
[1759933282213,0.47040248,4504.5,4504.1,0.00222106]
[1759933282412,2.83633298,4504.5,4504.2,0.9458]
[1759933282717,0.226,4504.4,4504.2,0.9458]
[1759933283208,2.83363998,4504.3,4504.2,0.9458]
[1759933283411,2.83363998,4504.3,4504.1,0.00222106]
[1759933284217,1.83363998,4504.3,4504.1,0.94802106]
[1759933284414,1.83363998,4504.3,4504.1,0.00222106]
[1759933284713,1.83363998,4504.3,4504.1,0.94802106]
[1759933285011,1.83363998,4504.3,4504.1,0.00222106]
[1759933285613,1.83363998,4504.3,4504.2,0.9458]
[1759933286118,1.83363998,4504.3,4504.2,4.1536]
[1759933287619,0.002693,4504.5,4504.3,1.34529]
[1759933287816,0.002693,4504.5,4504.4,0.9458]
[1759933288214,2.82665437,4504.5,4504.4,0.9458]
[1759933288418,0.002693,4504.5,4504.4,0.9458]
[1759933289320,0.39937,4505.7,4504.5,0.3735]
[1759933289522,3.2078,4505.8,4505.1,0.9458]
[1759933289523,0.3994,4505.4,4505.1,0.9458]
[1759933289816,0.3994,4505.4,4504.5,0.3735]
[1759933289817,6.07032716,4505.3,4504.3,3.2078]
[1759933290016,0.39945,4504.8,4504.1,0.40173106]
[1759933290314,0.39945,4504.8,4504.6,0.9458]
[1759933290315,0.226,4504.7,4504.6,0.9458]
[1759933290515,2.91008684,4504.7,4504.6,0.9458]
[1759933290822,0.00210792,4504.8,4504.7,0.9458]
[1759933293420,0.00210792,4504.8,4504.7,5.9458]
[1759933294221,0.00210792,4504.8,4504.7,0.9458]
[1759933295014,2.8639896,4504.8,4504.7,0.9458]
[1759933296116,3.2634396,4504.8,4504.7,0.9458]
[1759933296623,0.39947,4504.7,4504.6,0.9458]
[1759933297115,0.39947,4504.7,4504.5,0.3735]
[1759933297116,3.28311771,4504.7,4504.5,0.3735]
[1759933297517,0.226,4504.6,4504.5,0.3735]
[1759933297816,3.14327792,4504.6,4504.5,1.3193]
[1759933299120,3.14327792,4504.6,4504.5,0.3735]
[1759933299515,3.14327792,4504.6,4504.5,1.2823]
[1759933300721,3.14327792,4504.6,4504.5,0.3735]
[1759933300916,0.39948,4504.5,4504.4,0.9088]
[1759933301117,3.14327792,4504.6,4504.3,3.2078]
[1759933301323,2.90405306,4504.5,4504.4,0.9088]
[1759933301827,2.90405306,4504.5,4504.3,3.2078]
[1759933301828,3.37790552,4504.5,4504.3,3.2078]
[1759933302020,2.90405306,4504.5,4504.4,0.9211]
[1759933302222,3.3779072,4504.5,4504.4,0.9211]
[1759933302725,0.39949,4504.4,4504.3,3.2078]
[1759933302926,3.68165414,4504.4,4504.1,0.00222106]
[1759933303127,0.69985414,4504.3,4504.1,0.00222106]
[1759933303328,0.47385414,4504.2,4504.1,0.00222106]
[1759933303630,3.33284813,4504.2,4504.1,0.00222106]
[1759933303834,3.73234813,4504.2,4504.1,0.00222106]
[1759933305532,3.73234813,4504.2,4504.1,4.13112106]
[1759933305533,3.33284813,4504.2,4504.1,4.13112106]
[1759933305728,0.00210792,4504.8,4504.1,9.13112106]
[1759933305932,0.70015885,4504.7,4504.6,0.9211]
[1759933306232,3.04624581,4504.7,4504.6,0.9211]
[1759933306429,0.00210792,4504.8,4504.7,0.9211]
[1759933306634,0.00210792,4504.8,4504.7,5.9211]
[1759933307031,0.00210792,4504.8,4504.7,46.7211]
[1759933307331,0.00210792,4504.8,4504.7,0.9211]
[1759933307530,0.47631825,4504.8,4504.7,0.9211]
[1759933308228,3.34519221,4504.8,4504.7,0.9211]
[1759933308926,6.55299221,4504.8,4504.1,0.00222106]
[1759933309128,0.99868,4504.6,4504.1,0.00222106]
[1759933309337,0.3995,4504.2,4504.1,0.00222106]
[1759933309629,1.09971033,4504.2,4504.1,0.00222106]
[1759933309831,3.97666943,4504.2,4504.1,0.00222106]
[1759933310035,3.97666943,4504.2,4502.9,0.226]
[1759933310036,0.9989,4503.7,4502.8,0.9211]
[1759933310328,3.2078,4503.4,4502.8,0.9211]
[1759933310532,0.70021033,4503.3,4502.7,0.9211]
[1759933310733,0.39962,4502.9,4502.7,0.9211]
[1759933310930,0.226,4502.8,4502.7,0.92292883]
[1759933311135,3.06494906,4502.8,4502.7,0.92292883]
[1759933313325,3.2078,4503.9,4502.7,0.92292883]
[1759933313531,0.69976497,4503.8,4503.6,0.9211]
[1759933313731,3.37817263,4503.7,4503.6,0.9211]
[1759933314537,2.90440766,4503.7,4503.6,0.9211]
[1759933314737,3.37806544,4503.7,4503.6,0.9211]
[1759933315138,2.90440766,4503.7,4503.6,0.9211]
[1759933315740,2.90440766,4503.7,4503.6,4.1289]
[1759933316634,2.90440766,4503.7,4503.6,0.9211]
[1759933317338,0.39956,4503.6,4503.5,0.3807]
[1759933317640,0.39958,4503.4,4503.2,0.9211]
[1759933317840,0.226,4503.3,4503.0,0.3807]
[1759933318136,3.52171671,4503.3,4503.1,0.9211]
[1759933318539,3.12213671,4503.3,4503.1,0.9211]
[1759933318837,3.12213671,4503.3,4503.0,0.3807]
[1759933319541,3.12213671,4503.3,4503.1,0.9211]
[1759933320336,0.226,4503.8,4503.3,0.9211]
[1759933320531,0.39955,4503.7,4503.6,0.9211]
[1759933320737,0.3996,4503.1,4503.0,4.5096]
[1759933320939,0.3996,4503.1,4503.0,3.5885]
[1759933321139,0.87311899,4503.1,4503.0,3.5885]
[1759933321339,3.73580591,4503.1,4503.0,4.5096]
[1759933321642,3.73580591,4503.1,4503.0,3.2078]
[1759933321843,3.73580591,4503.1,4502.5,0.3807]
[1759933321844,0.39965,4502.6,4502.5,0.3807]
[1759933322047,0.39965,4502.6,4502.0,0.3807]
[1759933322048,0.39969,4502.1,4502.0,0.3807]
[1759933322249,8.88195265,4502.1,4502.0,0.3807]
[1759933322549,7.2599421,4502.1,4502.0,0.3807]
[1759933322745,7.2599421,4502.1,4502.0,0.00259734]
[1759933323047,7.2599421,4502.1,4502.0,0.38329734]
[1759933323348,7.2599421,4502.1,4502.0,0.00259734]
[1759933323553,7.2599421,4502.1,4502.0,0.38329734]
[1759933323739,7.0339421,4502.1,4502.0,1.30439734]
[1759933323943,7.2599421,4502.1,4502.0,1.30439734]
[1759933324347,6.8602521,4502.1,4502.0,1.30439734]
[1759933324551,1.39895,4502.0,4501.5,0.3807]
[1759933324742,3.60753,4501.6,4501.5,0.3807]
[1759933324945,4.30704899,4501.6,4501.5,0.3807]
[1759933325151,7.19337434,4501.6,4501.5,0.3807]
[1759933325548,6.79633824,4501.6,4501.5,0.38266823]
[1759933326348,12.79568824,4501.6,4500.5,0.3807]
[1759933326650,12.79568824,4501.6,4500.0,0.3807]
[1759933326651,4.20737,4500.6,4500.0,0.3807]
[1759933326853,8.25626265,4500.1,4500.0,0.3807]
[1759933327057,3.4338,4500.1,4500.0,1.3018]
[1759933327246,3.4338,4500.1,4498.5,0.3807]
[1759933327247,0.39996,4499.1,4498.7,0.9211]
[1759933327447,3.83376,4499.1,4499.0,0.00251556]
[1759933327654,0.4,4498.6,4498.5,0.3807]
[1759933327851,3.8338,4498.6,4498.5,0.3807]
[1759933328155,6.27783922,4498.6,4498.5,1.3018]
[1759933328358,6.27783922,4498.6,4498.5,0.3807]
[1759933328658,6.27783922,4498.6,4498.5,0.38269818]
[1759933329356,6.27783922,4498.6,4498.5,0.00199818]
[1759933330152,6.27783922,4498.6,4498.5,1.29579818]
[1759933330552,6.27783922,4498.6,4498.5,0.35789818]
[1759933330853,6.27783922,4498.6,4498.5,1.29579818]
[1759933331048,6.27783922,4498.6,4498.0,1.3186]
[1759933331255,0.40004,4498.2,4498.0,1.3186]
[1759933331456,0.226,4498.1,4498.0,1.3186]
[1759933331657,3.07536709,4498.1,4498.0,1.3186]
[1759933332059,3.07697715,4498.1,4498.0,1.32040747]
[1759933333655,11.3332398,4498.1,4497.5,0.3807]
[1759933333858,3.60789,4497.6,4497.5,0.3807]
[1759933334161,3.60789,4497.6,4497.1,1.03796337]
[1759933334162,3.4338,4497.6,4497.1,0.10006337]
[1759933334457,0.40017,4496.7,4496.6,0.9379]
[1759933334655,3.83397,4496.7,4496.6,0.00255765]
[1759933334854,6.66468194,4496.7,4496.6,0.00255765]
[1759933335657,6.66468194,4496.7,4495.5,0.75618]
[1759933335658,1.00045,4496.6,4495.6,0.9379]
[1759933335856,1.00045,4496.6,4495.5,0.3559]
[1759933335857,0.40034,4494.8,4494.7,3.2078]
[1759933336161,0.40034,4494.8,4494.0,0.3559]
[1759933336162,6.35215468,4494.8,4494.1,0.9379]
[1759933336356,0.40036,4494.6,4494.0,1.2938]
[1759933336660,3.2078,4494.2,4494.1,0.9379]
[1759933336964,3.4338,4494.2,4494.1,0.9379]
[1759933337156,6.29565772,4494.2,4494.1,0.9379]
[1759933337462,6.29565772,4494.2,4494.0,1.29640729]
[1759933338160,0.40041,4494.1,4493.5,0.3559]
[1759933338463,3.2078,4493.7,4493.6,0.9379]
[1759933338660,3.4338,4493.7,4493.6,0.9379]
[1759933338865,6.03854223,4493.7,4493.6,0.9379]
[1759933339161,0.00160622,4494.6,4494.5,1.69417]
[1759933339373,0.22760622,4494.6,4494.5,1.69417]
[1759933339663,3.17075487,4494.6,4494.5,1.69417]
[1759933340054,2.94475487,4494.6,4494.5,1.69417]
[1759933340254,3.17075487,4494.6,4494.5,1.69417]
[1759933340462,2.94475487,4494.6,4494.5,6.69417]
[1759933340657,0.00160622,4494.6,4494.5,6.69417]
[1759933342467,0.22760622,4494.6,4494.5,1.2938]
[1759933343170,0.62796622,4494.6,4494.5,1.2938]
[1759933343364,3.45424109,4494.6,4494.5,1.2938]
[1759933343667,3.45424109,4494.6,4494.5,0.3559]
[1759933343866,3.05388109,4494.6,4494.5,1.2938]
[1759933345666,0.00160622,4494.6,4494.5,6.2938]
[1759933346367,0.00160622,4494.6,4494.5,1.2938]
[1759933346863,2.83307376,4494.6,4494.5,1.2938]
[1759933347769,6.04087376,4494.6,4494.5,1.2938]
[1759933348164,6.04087376,4494.6,4494.5,0.3559]
[1759933348765,6.04087376,4494.6,4494.5,1.2938]
[1759933348967,6.26687376,4494.6,4494.5,1.2938]
[1759933349465,3.20940622,4494.6,4494.5,1.2938]
[1759933350266,0.00160622,4494.6,4494.5,1.2938]
[1759933350473,0.00160622,4494.6,4494.5,6.2938]
[1759933351067,0.40022,4496.2,4496.1,1.33812]
[1759933351068,3.2078,4496.2,4496.1,1.33812]
[1759933351269,3.2688,4496.2,4496.1,1.33812]
[1759933351665,3.2078,4496.7,4496.5,0.3559]
[1759933351871,0.226,4496.6,4496.5,0.3559]
[1759933352069,3.16131099,4496.6,4496.5,0.3559]
[1759933352267,2.93531099,4496.6,4496.5,0.3559]
[1759933352566,0.00237265,4496.7,4496.6,0.40018]
[1759933352759,0.00237265,4496.7,4496.6,1.33808]
[1759933353366,0.22837265,4496.7,4496.6,1.33808]
[1759933353966,0.00237265,4496.7,4496.6,1.33808]
[1759933355570,3.2078,4497.2,4497.1,0.9379]
[1759933355771,3.2078,4497.2,4497.1,1.33803]
[1759933355964,3.2078,4498.2,4498.0,0.3559]
[1759933356171,5.04846265,4499.2,4498.0,0.3559]
[1759933356172,3.6078,4498.7,4498.5,0.3559]
[1759933356367,0.226,4498.6,4498.5,0.3559]
[1759933356574,3.14731564,4498.6,4498.5,0.35797112]
[1759933356877,2.92131564,4498.6,4498.5,1.29587112]
[1759933357375,0.40004,4498.2,4498.0,1.2938]
[1759933357563,3.4338,4498.1,4498.0,0.3559]
[1759933357764,6.36103056,4498.1,4498.0,0.3559]
[1759933357963,0.40008,4497.7,4497.6,0.9379]
[1759933358165,0.40008,4497.7,4497.5,0.3559]
[1759933358166,6.13503056,4498.1,4497.5,0.3559]
[1759933358373,6.13503056,4498.1,4498.0,1.2938]
[1759933358570,6.83252665,4498.1,4498.0,1.2938]
[1759933359872,6.36103056,4498.1,4498.0,1.2938]
[1759933360073,6.13503056,4498.1,4498.0,1.2938]
[1759933360376,6.36103056,4498.1,4498.0,1.2938]
[1759933360880,6.13503056,4498.1,4498.0,1.2938]
[1759933361174,6.36103056,4498.1,4498.0,1.2938]
[1759933362072,6.36103056,4498.1,4498.0,0.3559]
[1759933362375,0.40009,4497.6,4497.5,1.24867364]
[1759933362584,3.83389,4497.6,4497.5,1.24867364]
[1759933362773,6.73788437,4497.6,4497.5,1.24867364]
[1759933362973,6.73788437,4497.6,4497.5,0.35847364]
[1759933363680,6.33779437,4497.6,4497.5,0.35847364]
[1759933363882,6.11179437,4497.6,4497.5,1.24867364]
[1759933364182,6.33779437,4497.6,4497.5,1.24867364]
[1759933364382,6.33779437,4497.6,4497.5,0.35847364]
[1759933364882,6.33779437,4497.6,4497.5,1.24867364]
[1759933365186,1.00025,4497.5,4497.0,1.2461]
[1759933365386,3.2078,4497.1,4497.0,1.2461]
[1759933365682,6.83964411,4497.1,4497.0,1.2461]
[1759933365879,6.14186071,4497.1,4497.0,1.2461]
[1759933366084,6.36786071,4497.1,4497.0,1.24893354]
[1759933367379,6.14186071,4497.1,4497.0,1.24893354]
[1759933367573,3.2078,4497.1,4497.0,1.24893354]
[1759933367776,3.4338,4497.1,4497.0,1.24893354]
[1759933368475,6.35766755,4497.1,4497.0,1.24893354]
[1759933370079,6.13166755,4497.1,4497.0,6.24893354]
[1759933370277,3.4338,4497.1,4497.0,1.24893354]
[1759933370685,3.2078,4497.1,4497.0,1.24893354]
[1759933370987,0.40009,4497.7,4497.0,1.24893354]
[1759933370988,3.2078,4497.7,4497.6,0.8902]
[1759933371174,0.00203667,4498.6,4498.5,1.2629]
[1759933371481,3.06484573,4498.6,4498.5,1.2629]
[1759933371879,0.22803667,4498.6,4498.5,1.2629]
[1759933372784,3.06799965,4498.6,4498.5,1.2629]
[1759933373681,3.06799965,4498.6,4498.5,0.3727]
[1759933374281,0.40004,4498.1,4498.0,1.2629]
[1759933374485,3.4338,4498.1,4498.0,1.2629]
[1759933374784,6.29806673,4498.1,4498.0,1.2629]
[1759933376989,6.07206673,4498.1,4498.0,1.2629]
[1759933377285,6.29806673,4498.1,4498.0,1.2629]
[1759933379591,6.07206673,4498.1,4498.0,1.2629]
[1759933379888,6.29806673,4498.1,4498.0,1.2629]
[1759933380789,11.03701114,4498.1,4498.0,1.2629]
[1759933380985,17.03714114,4498.1,4497.5,0.3727]
[1759933381178,4.66453319,4497.6,4497.5,1.2629]
[1759933381487,8.25521422,4497.6,4497.5,1.2629]
[1759933381686,0.40012,4497.2,4497.0,0.35873354]
[1759933381886,3.90830122,4497.1,4497.0,0.35873354]
[1759933382086,11.06292422,4497.1,4497.0,0.35873354]
[1759933382593,11.06292422,4497.1,4497.0,0.00283354]
[1759933382794,0.40018,4496.6,4496.5,1.2629]
[1759933382985,3.83398,4496.6,4496.5,1.2629]
[1759933383181,11.48318307,4496.6,4496.5,1.2629]
[1759933383383,0.40021,4496.2,4496.1,0.8902]
[1759933383585,0.62621,4496.2,4496.1,0.8902]
[1759933383793,3.93716067,4496.2,4496.1,0.00195737]
[1759933384690,8.93716067,4496.2,4496.1,0.00195737]
[1759933384992,8.53695067,4496.2,4496.1,0.00195737]
[1759933385588,8.53695067,4496.2,4496.1,0.89215737]
[1759933386293,8.06198439,4496.2,4496.1,0.89215737]
[1759933386795,0.40026,4495.7,4495.6,0.8902]
[1759933386994,3.83406,4495.7,4495.6,0.8902]
[1759933387190,6.74151803,4495.7,4495.6,0.8902]
[1759933387383,6.74151803,4495.7,4495.5,0.3727]
[1759933387589,6.74151803,4495.7,4495.5,0.37427137]
[1759933387784,0.47423999,4495.6,4495.5,0.37427137]
[1759933387989,6.74151803,4495.7,4495.5,1.26447137]
[1759933387990,6.74152803,4495.7,4495.5,1.26447137]
[1759933388187,7.12269697,4495.6,4495.5,0.37427137]
[1759933388385,0.40031,4495.2,4495.0,1.2629]
[1759933388693,6.29574719,4495.1,4495.0,1.3014]
[1759933389394,6.29748609,4495.1,4495.0,1.30424521]
[1759933390088,0.0017389,4495.1,4495.0,6.30424521]
[1759933390283,0.2277389,4495.1,4495.0,1.30424521]
[1759933390484,3.07066841,4495.1,4495.0,1.30424521]
[1759933390685,0.40035,4494.7,4494.4,0.9287]
[1759933390897,0.226,4494.6,4494.5,1.3014]
[1759933391092,6.28532428,4494.6,4494.5,1.3014]
[1759933391590,6.28532428,4494.6,4494.0,0.3727]
[1759933391591,10.54976747,4494.6,4494.0,1.3014]
[1759933391795,3.6082,4494.1,4494.0,1.3039415]
[1759933392106,3.8342,4494.1,4494.0,1.3039415]
[1759933392287,3.8342,4494.1,4492.5,0.3689]
[1759933392288,15.52521415,4494.1,4492.5,0.3689]
[1759933392595,7.47224319,4492.6,4492.5,1.2976]
[1759933392798,7.69824319,4492.6,4492.5,1.2976]
[1759933392996,10.59715846,4492.6,4492.5,1.2976]
[1759933393195,6.33271527,4492.6,4492.5,1.2976]
[1759933393490,6.33271527,4492.6,4492.5,1.29992978]
[1759933393995,3.2078,4493.7,4493.5,0.3689]
[1759933394292,0.226,4493.6,4493.5,0.3689]
[1759933394589,3.2078,4493.7,4493.6,0.9287]
[1759933394990,6.26755524,4493.7,4493.6,0.9287]
[1759933395587,0.40045,4493.6,4493.5,0.3689]
[1759933395791,4.66489319,4493.6,4493.5,0.3689]
[1759933396099,0.40048,4493.2,4493.1,0.9287]
[1759933396397,6.48226728,4493.2,4493.1,0.9287]
[1759933396591,6.70826728,4493.2,4493.1,0.9287]
[1759933396793,6.30778728,4493.2,4493.1,0.9287]
[1759933398993,6.70826728,4493.2,4493.1,0.9287]
[1759933399795,6.70826728,4493.2,4493.0,0.3689]
[1759933400300,6.70826728,4493.2,4493.0,1.2976]
[1759933400498,6.70826728,4493.2,4493.0,0.3689]
[1759933400697,0.40052,4492.8,4492.5,0.37122978]
[1759933400898,3.4338,4492.7,4492.6,0.9287]
[1759933401194,6.31253702,4492.7,4492.6,0.9287]
[1759933401387,6.31253702,4492.7,4492.5,0.37122978]
[1759933401388,0.40053,4492.6,4492.5,1.29992978]
[1759933401791,3.34407176,4492.6,4492.5,1.29992978]
[1759933402389,2.94354176,4492.6,4492.5,1.29992978]
[1759933402596,3.16954176,4492.6,4492.5,1.29992978]
[1759933404794,3.16954176,4492.6,4491.7,3.2078]
[1759933404795,8.16954176,4492.6,4491.7,3.2078]
[1759933405003,8.16954176,4492.6,4491.0,0.3689]
[1759933405004,0.40061,4491.7,4491.5,0.3689]
[1759933405301,7.47224319,4491.8,4491.0,1.2976]
[1759933405302,0.40067,4491.2,4491.0,1.2976]
[1759933405500,3.4338,4491.1,4491.0,1.2976]
[1759933405699,6.37034918,4491.1,4491.0,1.2976]
[1759933405899,10.63717664,4491.1,4491.0,1.29932228]
[1759933406297,6.14673345,4491.1,4491.0,1.29932228]
[1759933406701,6.37273345,4491.1,4491.0,1.29932228]
[1759933409504,6.14673345,4491.1,4491.0,1.29932228]
[1759933409697,6.37273345,4491.1,4491.0,1.29932228]
[1759933410108,0.00238427,4491.1,4491.0,6.29932228]
[1759933410310,0.00238427,4491.1,4491.0,9.50712228]
[1759933410608,3.05443936,4491.1,4491.0,1.29932228]
[1759933410801,3.05443936,4491.1,4491.0,6.29932228]
[1759933410802,3.15143936,4491.1,4491.0,6.29932228]
[1759933411002,0.22838427,4491.1,4491.0,6.29932228]
[1759933411209,3.15143936,4491.1,4491.0,1.29932228]
[1759933413606,7.41588255,4491.1,4491.0,1.29932228]
[1759933414309,2.92543936,4491.1,4491.0,1.29932228]
[1759933414704,3.15143936,4491.1,4491.0,1.29932228]
[1759933417710,2.92543936,4491.1,4491.0,1.29932228]
[1759933418010,1.18964789,4492.7,4491.0,1.29932228]
[1759933418011,3.2078,4491.7,4491.0,6.29932228]
[1759933418214,3.2078,4491.7,4491.6,0.9287]
[1759933418416,3.4338,4491.7,4491.6,0.9287]
[1759933418912,6.37994167,4491.7,4491.6,0.9287]
[1759933419106,6.38255754,4491.7,4491.6,0.9287]
[1759933419309,6.15655754,4491.7,4491.6,0.9287]
[1759933419809,6.38255754,4491.7,4491.6,0.9287]
[1759933420213,3.43641587,4491.7,4491.6,0.9287]
[1759933420612,3.43641587,4491.7,4491.6,5.9287]
[1759933421616,0.22861587,4491.7,4491.6,5.9287]
[1759933422005,0.22861587,4491.7,4491.6,0.9287]
[1759933422717,3.13880392,4491.7,4491.6,0.9287]
[1759933423210,2.91280392,4491.7,4491.6,0.9287]
[1759933423416,3.13880392,4491.7,4491.6,0.9287]
[1759933424110,0.00261587,4491.7,4491.6,0.9287]
[1759933424306,0.22861587,4491.7,4491.6,0.9287]
[1759933424723,3.1716432,4491.7,4491.6,0.9287]
[1759933425922,6.3794432,4491.7,4491.6,0.9287]
[1759933426515,2.9456432,4491.7,4491.6,5.9287]
[1759933426713,0.00261587,4491.7,4491.6,5.9287]
[1759933427111,0.00261587,4491.7,4491.6,0.9287]
[1759933427319,0.22861587,4491.7,4491.6,0.9287]
[1759933429416,6.31268848,4491.7,4491.6,0.9287]
[1759933430118,6.08668848,4491.7,4491.6,0.9287]
[1759933430422,3.43641587,4491.7,4491.6,0.9287]
[1759933430616,6.37460163,4491.7,4491.6,0.9287]
[1759933431023,6.8489205,4491.7,4491.6,0.9287]
[1759933432619,11.76755318,4491.7,4491.6,0.9287]
[1759933433621,0.40067,4491.2,4491.0,0.37062228]
[1759933433923,6.36818724,4491.1,4491.0,0.37062228]
[1759933434121,2.93438724,4491.1,4491.0,0.37062228]
[1759933434321,3.2078,4491.6,4491.5,0.3368]
[1759933434513,3.90852805,4491.6,4491.5,0.3368]
[1759933434718,6.85515934,4491.6,4491.5,0.3368]
[1759933434916,6.62915934,4491.6,4491.5,0.3368]
[1759933435119,0.00261587,4491.7,4491.6,0.40062]
[1759933435433,4.91863268,4493.5,4493.0,0.3368]
[1759933435434,3.2078,4493.1,4493.0,0.3368]
[1759933435722,3.68239996,4493.1,4493.0,1.1786]
[1759933435918,6.79221954,4493.1,4493.0,1.1786]
[1759933436120,3.58441954,4493.1,4493.0,1.1786]
[1759933436330,3.36116692,4493.1,4493.0,1.1786]
[1759933436626,3.11256696,4493.1,4493.0,1.1786]
[1759933436828,0.00274738,4493.1,4493.0,4.3864]
[1759933437219,0.00274738,4493.1,4493.0,1.1786]
[1759933437629,3.08370517,4493.1,4493.0,1.1786]
[1759933437925,3.55796479,4493.1,4493.0,1.1786]
[1759933438125,3.55795723,4493.1,4493.0,1.1786]
[1759933438329,3.08370517,4493.1,4493.0,1.1786]
[1759933438722,2.85770517,4493.1,4493.0,1.1786]
[1759933439222,2.85770517,4493.1,4491.4,1.54284633]
[1759933439223,0.40058,4492.1,4492.0,1.1786]
[1759933439428,8.75301268,4492.1,4492.0,1.1786]
[1759933439629,12.11768898,4492.1,4492.0,0.3368]
[1759933439927,0.40062,4491.6,4491.5,1.1786]
[1759933440123,3.83442,4491.6,4491.5,1.1786]
[1759933440326,0.40067,4491.1,4491.0,0.33852228]
[1759933440533,0.40071,4490.6,4490.5,1.1786]
[1759933440723,3.83451,4490.6,4490.5,1.1786]
[1759933440922,6.7882829,4490.6,4490.5,1.1786]
[1759933441118,6.3875729,4490.6,4490.5,1.1786]
[1759933441826,6.3875729,4490.6,4490.5,1.18038542]
[1759933443519,6.3875729,4490.6,4490.5,0.33858542]
[1759933444230,0.40076,4490.1,4490.0,0.3368]
[1759933444426,3.83456,4490.1,4490.0,1.1786]
[1759933444622,6.74677933,4490.1,4490.0,1.1786]
[1759933445025,6.74677933,4490.1,4490.0,1.18123275]
[1759933445435,6.74677933,4490.1,4490.0,0.33943275]
[1759933445731,6.12001933,4490.1,4490.0,1.18123275]
[1759933445933,6.34601933,4490.1,4490.0,1.18123275]
[1759933446130,6.74677933,4490.1,4490.0,1.18123275]
[1759933446331,6.74677933,4490.1,4490.0,0.33943275]
[1759933446634,6.34601933,4490.1,4490.0,1.18123275]
[1759933447029,11.26465201,4490.1,4489.5,0.3368]
[1759933447233,3.2078,4489.6,4489.1,0.10024169]
[1759933447526,3.12166545,4489.5,4489.2,0.8418]
[1759933448034,2.89741923,4489.5,4489.3,0.40083]
[1759933448231,2.89741923,4489.5,4489.4,0.8418]
[1759933448533,3.12341923,4489.5,4489.4,0.8418]
[1759933449532,2.89741923,4489.5,4489.2,0.40083]
[1759933449729,0.226,4489.4,4489.2,0.40083]
[1759933450128,2.85148114,4489.3,4489.2,0.40083]
[1759933450325,3.07748114,4489.3,4489.2,0.40083]
[1759933450527,0.226,4489.3,4489.2,0.40269839]
[1759933450832,0.00175378,4489.5,4489.2,0.40269839]
[1759933450833,0.00175378,4489.5,4489.4,0.40082]
[1759933451230,0.22775378,4489.5,4489.4,0.40082]
[1759933451427,0.22775378,4489.5,4489.4,1.28352]
[1759933451625,3.2078,4490.6,4490.5,1.2118]
[1759933451828,3.4338,4490.6,4490.5,1.2118]
[1759933452036,3.4338,4490.6,4490.1,0.8827]
[1759933452037,0.40075,4490.2,4490.1,0.8827]
[1759933452329,3.45607929,4490.2,4490.1,0.8827]
[1759933452534,2.82932929,4490.2,4490.1,0.8827]
[1759933452830,0.22813884,4490.2,4490.1,0.8827]
[1759933453237,0.22813884,4490.2,4490.0,0.3291]
[1759933453238,0.40076,4490.1,4490.0,0.3291]
[1759933453528,3.23697635,4490.1,4490.0,1.2118]
[1759933454132,0.00213884,4490.2,4490.1,0.40076]
[1759933454431,0.22813884,4490.2,4490.1,0.8827]
[1759933455031,0.00213884,4490.2,4490.1,0.8827]
[1759933455330,0.22813884,4490.2,4490.1,0.8827]
[1759933455935,3.17312858,4490.2,4490.1,0.8827]
[1759933456438,0.40076,4490.1,4490.0,0.3291]
[1759933456632,3.60856,4490.1,4490.0,0.3291]
[1759933456831,6.15446264,4490.1,4490.0,0.3291]
[1759933457031,6.15446264,4490.1,4490.0,1.2118]
[1759933457235,6.38046264,4490.1,4490.0,1.2118]
[1759933462139,6.15446264,4490.1,4490.0,1.2118]
[1759933462342,0.00213884,4490.2,4490.1,1.28346]
[1759933462539,0.00213884,4490.2,4490.1,6.28346]
[1759933463642,3.2078,4492.1,4491.5,0.3291]
[1759933463838,3.2078,4492.1,4492.0,0.3291]
[1759933464039,3.83438,4492.1,4492.0,1.2118]
[1759933464240,6.70319195,4492.1,4492.0,1.2118]
[1759933464642,6.705703,4492.1,4492.0,1.2118]
[1759933465137,6.705703,4492.1,4492.0,0.3291]
[1759933465340,6.705703,4492.1,4492.0,1.2118]
[1759933465743,6.305123,4492.1,4492.0,1.2118]
[1759933465935,0.00251105,4492.1,4492.0,1.2118]
[1759933467945,0.00251105,4492.1,4492.0,6.2118]